bitfinex/quotes_ETHUSD_20240924
["timestamp","ask_amount","ask_price","bid_price","bid_amount"]
[1727179732950,3.78207,2644.1,2643.7,0.8298]
[1727179733159,3.78207,2644.1,2643.8,0.04988187]
[1727179733429,3.78207,2644.1,2643.7,0.8298]
[1727179734299,3.78207,2644.1,2643.8,0.04988187]
[1727179734586,3.78207,2644.1,2643.7,0.8298]
[1727179734958,3.78207,2644.1,2643.8,0.04988187]
[1727179735152,3.87651654,2644.2,2643.8,3.83230187]
[1727179735480,3.78202,2644.1,2643.9,0.04988187]
[1727179735668,0.09456703,2644.0,2643.9,0.04988187]
[1727179735981,0.09456703,2644.0,2643.9,0.05006087]
[1727179736183,0.09456703,2644.0,2643.7,0.8298]
[1727179736568,0.09456703,2644.0,2643.8,0.05006087]
[1727179736769,0.09456703,2644.0,2643.7,0.8298]
[1727179737287,0.09456703,2644.0,2643.8,0.05006087]
[1727179737660,0.09456703,2644.0,2643.6,3.78268]
[1727179738368,0.09456703,2644.0,2643.7,0.05006087]
[1727179738884,0.09456703,2644.0,2643.7,3.83263087]
[1727179739058,0.09456703,2644.0,2643.7,0.05006087]
[1727179739259,0.09456703,2644.0,2643.7,3.83262087]
[1727179740068,0.09456703,2644.0,2643.7,0.05006087]
[1727179741761,0.09456703,2644.0,2643.7,3.83262087]
[1727179743184,0.09456703,2644.0,2643.7,0.05006087]
[1727179744007,0.09456703,2644.0,2643.7,3.83262087]
[1727179752601,0.09456703,2644.0,2643.7,7.61512087]
[1727179753720,0.09456703,2644.0,2643.8,3.78238]
[1727179754007,0.09456408,2644.1,2643.9,0.05011353]
[1727179756273,0.73838095,2644.1,2643.9,0.05011353]
[1727179756523,2.49220151,2644.1,2643.7,3.78256]
[1727179756679,2.49220151,2644.1,2644.0,0.05011353]
[1727179756990,6.27420151,2644.1,2643.7,3.78256]
[1727179757177,0.64414975,2644.0,2643.7,3.78256]
[1727179757378,1.43145289,2644.0,2643.8,0.05011353]
[1727179757612,2.39942363,2644.0,2643.7,3.78256]
[1727179757910,2.39942363,2644.0,2643.8,0.05011353]
[1727179758286,2.39942363,2644.0,2643.7,3.78256]
[1727179758486,1.27551879,2644.1,2643.9,0.05011353]
[1727179758803,2.79575832,2644.0,2643.7,3.78256]
[1727179759003,0.79224651,2643.9,2643.7,3.78256]
[1727179759198,2.40711388,2643.9,2643.7,3.78256]
[1727179759390,2.40861643,2643.8,2643.7,3.78256]
[1727179759590,1.43879448,2643.8,2643.7,3.78256]
[1727179760489,2.40861643,2643.8,2643.7,3.78256]
[1727179760988,1.43879448,2643.8,2643.7,3.78256]
[1727179761431,2.40861643,2643.8,2643.7,3.78256]
[1727179761719,2.40861643,2643.8,2643.7,10.413269]
[1727179761920,0.79224651,2643.8,2643.7,10.413269]
[1727179762120,2.40909264,2643.8,2643.7,10.413269]
[1727179762527,2.41019205,2643.8,2643.7,10.413269]
[1727179762824,2.41019205,2643.8,2643.7,10.79538182]
[1727179763538,2.79780084,2643.8,2643.7,10.79538182]
[1727179763740,2.79780084,2643.8,2643.7,4.16467282]
[1727179764028,2.79780084,2643.8,2643.7,6.31881982]
[1727179764191,1.61684613,2643.8,2643.7,6.31881982]
[1727179764526,2.79780084,2643.8,2643.7,6.31881982]
[1727179765891,2.79780084,2643.8,2643.7,4.21479689]
[1727179766801,2.80036892,2643.8,2643.7,4.21479689]
[1727179767118,2.81113597,2643.8,2643.7,4.21479689]
[1727179767317,1.61941421,2643.8,2643.7,4.21479689]
[1727179767538,4.48955186,2643.8,2643.7,4.82692238]
[1727179767829,4.48955186,2643.8,2643.7,4.82739984]
[1727179768301,4.48955186,2643.8,2643.7,4.82760131]
[1727179769498,2.91494558,2643.8,2643.7,4.82760131]
[1727179769904,4.90114856,2643.8,2643.7,4.82760131]
[1727179770341,2.91494558,2643.8,2643.7,4.82760131]
[1727179770542,4.90114856,2643.8,2643.7,4.82760131]
[1727179771540,4.90114856,2643.8,2643.7,3.83268407]
[1727179771708,4.90609429,2643.8,2643.7,4.82800798]
[1727179772936,4.90609429,2643.8,2643.7,10.40197398]
[1727179773706,4.50848675,2643.8,2643.7,10.40197398]
[1727179773928,2.9177138,2643.8,2643.7,10.40197398]
[1727179774343,4.50845775,2643.8,2643.7,10.40197398]
[1727179774643,4.50845775,2643.8,2643.7,9.40665007]
[1727179774849,2.9177138,2643.8,2643.7,9.40665007]
[1727179775145,4.50847323,2643.8,2643.7,9.40665007]
[1727179775845,2.9177138,2643.8,2643.7,7.16748307]
[1727179776010,4.50848892,2643.8,2643.7,7.16748307]
[1727179776511,2.91787089,2643.8,2643.7,7.16748307]
[1727179777412,4.90644462,2643.8,2643.7,7.16748307]
[1727179777859,2.91787089,2643.8,2643.7,7.16748307]
[1727179778323,2.91787089,2643.8,2643.7,3.83268407]
[1727179778521,2.91787089,2643.8,2643.7,8.41305707]
[1727179778842,4.5089062,2643.8,2643.7,7.20632707]
[1727179779043,2.91787089,2643.8,2643.7,7.20632707]
[1727179779932,4.50888211,2643.8,2643.7,7.20632707]
[1727179780137,2.91787089,2643.8,2643.7,7.20632707]
[1727179781451,1.29553137,2643.8,2643.7,7.20632707]
[1727179781747,2.91804355,2643.8,2643.7,7.20632707]
[1727179781963,4.50903429,2643.8,2643.7,7.20632707]
[1727179784777,2.91804355,2643.8,2643.7,7.20632707]
[1727179785731,1.29553137,2643.8,2643.7,7.20632707]
[1727179786069,2.91792917,2643.8,2643.7,7.20632707]
[1727179786972,4.50888964,2643.8,2643.7,7.20632707]
[1727179787832,2.91795159,2643.8,2643.7,6.98105407]
[1727179788033,2.91795159,2643.8,2643.7,3.83268407]
[1727179788570,4.508882,2643.8,2643.7,3.83268407]
[1727179788873,2.91795159,2643.8,2643.7,3.83268407]
[1727179789045,4.90662415,2643.8,2643.7,3.83268407]
[1727179789664,2.91795159,2643.8,2643.7,3.83268407]
[1727179792357,2.91795159,2643.8,2643.7,0.05012407]
[1727179792560,3.01251759,2643.8,2643.7,0.05012407]
[1727179793061,3.01427842,2643.8,2643.7,0.04859181]
[1727179793262,2.91971242,2643.8,2643.7,0.04859181]
[1727179795757,2.91971242,2643.8,2643.5,3.8206801]
[1727179796077,1.59047318,2643.6,2643.5,3.8206801]
[1727179796275,2.92238257,2643.6,2643.5,3.8206801]
[1727179796853,4.91047405,2643.6,2643.5,3.8206801]
[1727179797478,2.92238257,2643.6,2643.5,3.8206801]
[1727179798037,2.92238257,2643.6,2643.5,0.0378301]
[1727179798683,4.51246018,2643.6,2643.5,0.0378301]
[1727179800180,4.91047405,2643.6,2643.5,0.0378301]
[1727179801237,1.2988367,2643.6,2643.5,0.0378301]
[1727179801443,4.90827163,2643.6,2643.5,0.0378301]
[1727179803563,2.9213929,2643.6,2643.5,0.0378301]
[1727179803990,8.69099163,2643.6,2643.5,0.0378301]
[1727179804153,13.53434659,2643.6,2643.5,0.0378301]
[1727179804354,12.77211157,2643.6,2643.5,0.0378301]
[1727179804679,15.5537418,2643.6,2643.5,0.0378301]
[1727179805259,12.77211157,2643.6,2643.5,0.0378301]
[1727179805586,15.5537418,2643.6,2643.5,0.0378301]
[1727179805953,15.54734386,2643.6,2643.5,0.00046864]
[1727179806149,12.7697495,2643.6,2643.5,0.00046864]
[1727179806356,15.54579195,2643.6,2643.5,0.00046864]
[1727179806662,12.7697495,2643.6,2643.5,0.00046864]
[1727179806863,15.54561641,2643.6,2643.5,0.00046864]
[1727179807262,12.7697495,2643.6,2643.5,0.00046864]
[1727179807472,15.54561641,2643.6,2643.5,0.00046864]
[1727179808616,6.78343,2643.1,2643.0,0.038]
[1727179808817,11.2430631,2643.1,2643.0,0.038]
[1727179809026,12.7704595,2643.1,2643.0,0.038]
[1727179809378,15.14586021,2643.1,2643.0,0.038]
[1727179810425,12.75996434,2643.1,2643.0,0.038]
[1727179810793,15.12511534,2643.1,2643.0,0.038]
[1727179811184,12.75121388,2643.1,2643.0,0.038]
[1727179811532,15.12426259,2643.1,2643.0,0.038]
[1727179812028,11.30438192,2643.1,2643.0,0.038]
[1727179812195,12.75036113,2643.1,2643.0,0.038]
[1727179812531,17.73036113,2643.1,2643.0,0.038]
[1727179812689,20.49991283,2643.1,2643.0,0.038]
[1727179813521,17.73036113,2643.1,2643.0,0.038]
[1727179815325,17.72761856,2643.1,2643.0,0.038]
[1727179815630,20.0956006,2643.1,2643.0,0.038]
[1727179816314,16.11694701,2643.1,2643.0,0.038]
[1727179816726,31.04694701,2643.1,2643.0,0.038]
[1727179818714,31.04694701,2643.1,2643.0,0.0005496]
[1727179819778,31.04694701,2643.1,2642.7,0.0378301]
[1727179819779,6.78386,2642.8,2642.7,0.0378301]
[1727179819951,11.19940088,2642.8,2642.7,0.0378301]
[1727179820109,11.13387254,2642.8,2642.7,0.0378301]
[1727179820428,17.09396978,2642.8,2642.7,0.0378301]
[1727179820626,15.12387254,2642.8,2642.7,0.0378301]
[1727179821043,15.12387254,2642.8,2641.9,0.0378301]
[1727179821044,3.78501,2642.0,2641.9,0.0378301]
[1727179821212,5.32564844,2642.0,2641.9,0.0378301]
[1727179821555,8.32564844,2642.0,2641.9,0.0378301]
[1727179821737,8.23098921,2642.0,2641.9,0.0378301]
[1727179821944,8.87236843,2642.0,2641.9,0.0378301]
[1727179822109,8.23098921,2642.0,2641.9,0.0378301]
[1727179822313,8.87308832,2642.0,2641.9,0.0378301]
[1727179822549,8.23098921,2642.0,2641.9,0.0378301]
[1727179832905,3.78601,2641.3,2641.2,0.7721301]
[1727179833106,5.23198921,2641.3,2641.2,0.7721301]
[1727179833407,3.78615,2641.2,2641.1,0.0378301]
[1727179833697,6.88083691,2641.2,2641.1,0.0378301]
[1727179834503,10.02840517,2641.2,2641.1,0.0378301]
[1727179834822,9.93371826,2641.2,2641.1,0.0378301]
[1727179835912,9.93371826,2641.2,2640.0,3.78784]
[1727179835913,3.7873,2640.4,2640.0,0.8153]
[1727179836256,3.88200665,2640.4,2640.0,0.8153]
[1727179836863,0.09470665,2640.4,2640.0,0.8153]
[1727179837190,3.0,2640.6,2640.3,0.0171598]
[1727179837391,3.0,2640.6,2640.4,0.8153]
[1727179837696,3.78696,2640.7,2640.4,0.8153]
[1727179838287,3.78696,2640.7,2640.4,0.8324598]
[1727179838732,7.57393,2640.7,2640.4,0.8324598]
[1727179839366,3.78702,2640.6,2640.4,0.8324598]
[1727179841350,3.88171437,2640.6,2640.4,0.8324598]
[1727179841659,3.78716,2640.5,2640.4,0.8324598]
[1727179842362,3.78716,2640.5,2640.4,0.89210872]
[1727179842673,3.88172437,2640.6,2640.4,0.89210872]
[1727179842839,3.78716,2640.5,2640.4,0.89210872]
[1727179843045,3.88172437,2640.6,2640.4,0.89210872]
[1727179843347,7.66882437,2640.6,2640.4,0.89210872]
[1727179843539,3.88172437,2640.6,2640.4,0.89210872]
[1727179843949,3.78716,2640.5,2640.4,0.89210872]
[1727179844169,6.93472826,2640.5,2640.4,0.0171598]
[1727179844331,7.02943223,2640.5,2640.4,0.0171598]
[1727179845650,3.88186397,2640.5,2640.4,0.0171598]
[1727179847272,0.09470397,2640.5,2640.4,0.8385598]
[1727179847575,0.09470397,2640.5,2640.4,0.89820872]
[1727179848966,0.09470397,2640.5,2640.4,0.8385598]
[1727179849164,3.88175413,2640.6,2640.4,0.89832968]
[1727179850769,3.88175413,2640.6,2640.4,0.8385598]
[1727179850971,3.88175413,2640.6,2640.5,0.05976988]
[1727179851131,0.09469413,2640.6,2640.5,0.05976988]
[1727179851328,0.09469413,2640.6,2640.5,0.07692968]
[1727179851529,3.88170413,2640.6,2640.5,0.07692968]
[1727179852962,3.88170413,2640.6,2640.5,0.0171598]
[1727179853737,3.88170413,2640.6,2640.5,0.07692968]
[1727179854447,5.33467762,2640.6,2640.5,0.07692968]
[1727179855872,3.88170413,2640.6,2640.5,0.07692968]
[1727179856073,5.33467762,2640.6,2640.5,0.07692968]
[1727179856888,5.33467762,2640.6,2640.5,0.0171598]
[1727179858043,5.33467762,2640.6,2640.5,0.07692968]
[1727179858382,5.33467762,2640.6,2640.5,0.07691918]
[1727179860350,5.97684231,2640.6,2640.5,0.07691918]
[1727179861284,5.97677386,2640.6,2640.5,0.07691918]
[1727179861497,6.94001533,2640.6,2640.5,0.07691918]
[1727179861676,6.9399911,2640.6,2640.5,0.07691918]
[1727179861859,5.97682841,2640.6,2640.5,0.07691918]
[1727179862997,3.78701,2640.6,2640.5,0.07691918]
[1727179863300,3.78696,2640.7,2640.5,0.8027598]
[1727179863515,3.78701,2640.6,2640.5,0.8027598]
[1727179863810,3.78696,2640.7,2640.5,0.8027598]
[1727179863969,3.78696,2640.7,2640.5,0.86251918]
[1727179864167,3.78696,2640.7,2640.5,0.8027598]
[1727179864505,3.78694,2640.7,2640.5,0.8027598]
[1727179864867,3.78694,2640.7,2640.6,0.05975938]
[1727179865408,4.43007611,2640.7,2640.6,0.05975938]
[1727179865610,4.43007611,2640.7,2640.6,0.07691918]
[1727179865810,4.43008144,2640.7,2640.6,0.07691918]
[1727179866013,0.78772205,2640.8,2640.6,6.10242267]
[1727179866167,0.09467749,2641.0,2640.7,0.7856]
[1727179866504,0.09467749,2641.0,2640.7,0.8027598]
[1727179866505,3.78658,2640.9,2640.7,0.8027598]
[1727179866804,3.88141121,2640.8,2640.7,0.0171598]
[1727179867007,6.27758931,2640.8,2640.7,0.0171598]
[1727179867208,5.48986726,2640.8,2640.7,0.0171598]
[1727179867370,6.67145034,2640.8,2640.7,0.0171598]
[1727179867971,11.35209936,2640.8,2640.7,0.0171598]
[1727179868299,11.25741815,2640.8,2640.7,0.0171598]
[1727179870504,11.25901355,2640.8,2640.7,0.0171598]
[1727179872319,9.68356944,2640.8,2640.7,0.0171598]
[1727179873125,9.68356944,2640.8,2640.7,0.07668773]
[1727179873322,11.65733668,2640.8,2640.7,0.0171598]
[1727179873630,11.65733668,2640.8,2640.7,0.07668773]
[1727179874720,11.65733668,2640.8,2640.7,0.0171598]
[1727179875292,11.66222765,2640.8,2640.7,0.0171598]
[1727179875524,9.68576674,2640.8,2640.7,0.0171598]
[1727179878347,13.67213643,2640.8,2640.7,0.0171598]
[1727179878564,35.20038334,2640.8,2640.7,0.0171598]
[1727179878783,35.20038334,2640.8,2639.8,0.8280683]
[1727179878784,3.78802,2639.9,2639.8,0.0424683]
[1727179879052,6.7817787,2639.9,2639.8,0.0424683]
[1727179879418,9.7817787,2639.9,2639.8,0.0424683]
[1727179879757,9.68705674,2639.9,2639.8,0.0424683]
[1727179880059,4.88519193,2639.9,2639.8,0.8280683]
[1727179880263,4.48949529,2639.9,2639.8,0.8280683]
[1727179880555,2.80682061,2639.9,2639.8,4.66806581]
[1727179880922,2.41109265,2639.9,2639.8,4.66806581]
[1727179881351,2.41109265,2639.9,2639.8,0.87990581]
[1727179881761,2.41109265,2639.9,2639.8,5.51370939]
[1727179882354,0.79151469,2640.0,2639.9,4.57362]
[1727179882564,2.41273273,2640.0,2639.9,19.185917]
[1727179882711,0.64849365,2640.0,2639.9,23.0241729]
[1727179882917,0.64849365,2640.0,2639.9,23.07601041]
[1727179883547,2.41265861,2640.0,2639.9,23.07601041]
[1727179883779,1.44000834,2640.0,2639.9,23.07601041]
[1727179883983,2.41265861,2640.0,2639.9,23.07601041]
[1727179884144,1.44000834,2640.0,2639.9,18.72842041]
[1727179884351,1.41265861,2640.0,2639.9,15.40877541]
[1727179884650,1.41265861,2640.0,2639.9,11.57051951]
[1727179884976,0.40837151,2640.0,2639.9,14.71796676]
[1727179885184,1.18724265,2640.3,2639.9,13.93236676]
[1727179885334,1.18724265,2640.3,2640.2,0.7856]
[1727179885780,1.18724265,2640.3,2640.2,0.83743751]
[1727179886774,1.18724265,2640.3,2640.2,0.7856]
[1727179886984,1.18724265,2640.3,2640.2,1.29476951]
[1727179887475,1.18724265,2640.3,2640.2,5.08235951]
[1727179887689,1.18724265,2640.5,2640.4,3.78729]
[1727179887841,1.18724265,2640.7,2640.5,0.7856]
[1727179888047,1.18724265,2640.7,2640.6,3.78701]
[1727179888345,1.18724265,2640.7,2640.6,3.83884751]
[1727179888788,1.18724265,2640.7,2640.6,0.05183751]
[1727179893000,1.18724265,2640.7,2640.6,3.83884751]
[1727179893169,1.18724265,2640.7,2640.6,4.99474399]
[1727179893364,1.18724265,2640.8,2640.6,5.82554399]
[1727179893604,1.18724265,2641.0,2640.8,0.8308]
[1727179893812,1.58312934,2641.1,2640.7,19.19165595]
[1727179893813,1.18724265,2641.1,2640.9,15.4685236]
[1727179894106,1.18724265,2641.2,2640.9,6.6196256]
[1727179894308,1.18724265,2641.2,2641.0,0.92095259]
[1727179894615,1.18724265,2641.2,2641.1,0.8308]
[1727179894828,1.18724265,2641.3,2641.1,4.61708]
[1727179894985,1.75489563,2641.2,2641.1,4.66877045]
[1727179895172,1.75489563,2641.2,2641.1,16.53049071]
[1727179895369,0.7911198,2641.4,2641.2,4.61695]
[1727179895610,0.7911198,2641.3,2641.2,4.61695]
[1727179895911,0.7911198,2641.3,2641.2,26.740454]
[1727179895912,1.75453111,2641.3,2641.2,26.740454]
[1727179896217,1.75453111,2641.3,2641.2,30.19996738]
[1727179896518,0.7911198,2641.4,2641.2,30.19996738]
[1727179896697,0.7911198,2641.4,2641.2,8.07646338]
[1727179896886,0.7911198,2641.4,2641.2,4.61695]
[1727179897080,0.7911198,2641.4,2641.2,0.8308]
[1727179898673,4.5768498,2641.5,2641.2,0.8308]
[1727179898904,0.7911198,2641.4,2641.2,0.8308]
[1727179899101,5.63422966,2641.4,2641.2,0.8308]
[1727179899344,1.75342473,2641.3,2640.9,4.61736]
[1727179899524,0.7911198,2641.3,2640.9,4.61736]
[1727179899729,0.7911198,2641.3,2640.9,5.50776]
[1727179900816,0.7911198,2641.3,2641.0,0.04942439]
[1727179901230,4.67170986,2641.4,2641.0,0.04942439]
[1727179901431,0.96263506,2641.3,2641.1,0.8308]
[1727179901649,4.67170986,2641.4,2641.1,0.8308]
[1727179901852,0.96263643,2641.3,2641.2,0.04942439]
[1727179902346,4.67170986,2641.4,2641.2,0.04942439]
[1727179904557,0.64209128,2641.3,2641.2,0.04942439]
[1727179905314,4.67170986,2641.4,2641.2,0.04942439]
[1727179905954,5.39111904,2641.3,2641.2,0.04942439]
[1727179906115,6.27689871,2641.3,2641.2,0.04942439]
[1727179906334,6.27689871,2641.3,2640.9,0.8307]
[1727179906537,4.67178967,2641.3,2640.9,0.8307]
[1727179906734,3.88066987,2641.3,2640.9,0.8307]
[1727179906949,3.7863,2641.1,2641.0,0.04908842]
[1727179907280,3.88096755,2641.1,2641.0,0.04908842]
[1727179907653,4.52295927,2641.1,2641.0,0.04908842]
[1727179907870,4.52295927,2641.1,2640.7,1.3307]
[1727179908030,3.88096755,2641.1,2641.0,0.04905168]
[1727179908234,4.52296829,2641.1,2640.7,1.3307]
[1727179908438,4.52296829,2641.1,2641.0,0.04905168]
[1727179908667,0.73666829,2641.1,2640.7,1.3307]
[1727179908837,3.78651,2641.0,2640.7,1.3307]
[1727179911770,3.78631,2641.1,2640.7,1.3307]
[1727179912071,0.7911198,2641.4,2641.0,3.78634]
[1727179912382,0.7911198,2641.6,2641.4,4.61657]
[1727179912692,0.7911198,2641.8,2641.5,18.78657898]
[1727179912981,0.7911198,2642.1,2641.7,6.93288725]
[1727179913138,1.43261163,2642.1,2641.7,6.93288725]
[1727179913338,4.5757898,2642.3,2642.0,3.14744725]
[1727179913545,0.63610448,2642.2,2642.1,0.8307]
[1727179913769,4.5757898,2642.3,2642.1,0.8307]
[1727179914351,0.7911198,2642.3,2642.2,0.04867913]
[1727179914677,0.63614203,2642.3,2642.2,0.04867913]
[1727179914884,0.7911198,2642.4,2642.2,0.04867913]
[1727179915082,2.38149012,2642.4,2642.2,0.04867913]
[1727179915243,0.7911198,2642.4,2642.2,0.04867913]
[1727179915443,2.38090352,2642.4,2642.2,0.04867913]
[1727179915651,0.7911198,2642.4,2642.2,0.04867913]
[1727179915866,2.38092875,2642.4,2642.2,0.04867913]
[1727179916056,0.7911198,2642.4,2642.2,0.04867913]
[1727179916378,3.78438,2642.5,2642.2,0.04867913]
[1727179917265,3.78452,2642.4,2642.2,0.04867913]
[1727179917949,3.78451,2642.4,2642.2,0.04867913]
[1727179920061,3.7911198,2642.6,2642.2,0.04867913]
[1727179920264,3.78424,2642.6,2642.2,4.29982204]
[1727179920466,3.78403,2642.7,2642.2,4.29982204]
[1727179920700,3.78403,2642.7,2642.3,0.5130522]
[1727179920989,3.78422,2642.6,2642.4,0.04820693]
[1727179921288,3.87890295,2642.5,2642.2,0.46643291]
[1727179921492,3.78467,2642.3,2641.9,0.8056]
[1727179921849,3.78467,2642.3,2641.9,4.59075]
[1727179924362,3.78501,2642.0,2641.9,0.8056]
[1727179924590,3.87964257,2642.0,2641.6,0.8056]
[1727179924771,3.8798179,2641.9,2641.6,1.184171]
[1727179925097,3.87981799,2641.9,2641.6,0.8056]
[1727179925967,3.78518,2641.9,2641.6,0.8056]
[1727179926170,3.78518,2641.9,2641.6,1.264739]
[1727179926364,3.78518,2641.9,2641.6,0.8056]
[1727179926562,3.87981783,2641.9,2641.6,0.8056]
[1727179926997,7.66505783,2641.9,2641.6,0.8056]
[1727179927206,7.66505783,2641.9,2641.4,0.8056]
[1727179927207,3.78536,2641.8,2641.4,0.8056]
[1727179927391,3.88016507,2641.7,2641.4,0.8056]
[1727179927698,3.78565,2641.6,2641.4,0.8056]
[1727179927873,3.88004579,2641.8,2641.4,0.8056]
[1727179927874,3.78545,2641.7,2641.4,0.8056]
[1727179930390,3.78546,2641.7,2641.4,0.8056]
[1727179931012,3.78546,2641.7,2641.5,0.04850071]
[1727179931661,3.7854,2641.8,2641.5,0.04850071]
[1727179931662,3.78558,2641.6,2641.5,0.04850071]
[1727179931969,3.78601,2641.3,2641.2,0.5]
[1727179932166,3.88066854,2641.3,2641.2,0.5]
[1727179932389,4.51724219,2641.3,2641.2,0.5]
[1727179932594,3.88066854,2641.3,2641.2,0.5]
[1727179932811,0.63657563,2641.3,2641.2,0.5]
[1727179933012,3.78599,2641.4,2641.2,0.5]
[1727179933327,4.5771098,2641.4,2641.2,0.5]
[1727179933526,0.63673074,2641.3,2641.2,0.5]
[1727179933702,8.3624298,2641.6,2641.2,12.85403673]
[1727179933896,4.42255163,2641.5,2641.2,2.04896673]
[1727179934224,3.7859,2641.4,2641.2,1.3056]
[1727179935707,3.78587,2641.4,2641.2,0.5]
[1727179936899,3.78601,2641.3,2641.2,0.5]
[1727179937631,4.51839949,2641.3,2641.2,0.5]
[1727179937797,4.51838047,2641.3,2641.2,0.5]
[1727179938198,4.42372366,2641.3,2641.2,0.5]
[1727179938392,1.59447276,2641.3,2641.2,0.5]
[1727179938716,0.63771366,2641.3,2641.2,0.5]
[1727179938905,0.6378655,2641.3,2641.2,0.5]
[1727179939429,2.38593163,2641.3,2641.2,0.5]
[1727179939929,0.6378655,2641.3,2641.2,0.5]
[1727179940325,0.7911198,2641.4,2641.2,0.5]
[1727179940524,2.38610751,2641.4,2641.2,0.5]
[1727179940726,0.6379784,2641.3,2641.2,0.5]
[1727179940942,0.63799753,2641.3,2641.2,0.5]
[1727179941446,4.42400753,2641.3,2641.2,0.5]
[1727179941664,6.17206065,2641.3,2641.2,0.5]
[1727179942145,5.38094085,2641.3,2641.2,0.5]
[1727179942344,6.75146354,2641.3,2641.2,0.5]
[1727179942703,8.33459288,2641.3,2641.2,0.5]
[1727179942940,8.23992361,2641.3,2641.2,0.5]
[1727179943454,6.56540832,2641.3,2641.2,0.5]
[1727179943648,6.65968767,2641.3,2641.2,0.5]
[1727179944716,6.65968767,2641.3,2641.2,0.54870008]
[1727179945252,6.65968767,2641.3,2641.2,0.5]
[1727179945818,6.56501778,2641.3,2641.2,0.5]
[1727179946354,6.56470323,2641.3,2641.2,0.5]
[1727179946530,6.56470323,2641.3,2641.2,0.54870008]
[1727179947121,6.56475126,2641.3,2641.2,0.54870008]
[1727179948157,6.1699885,2641.3,2641.2,0.54870008]
[1727179948457,6.16954752,2641.3,2641.2,0.54870008]
[1727179948755,6.16952225,2641.3,2641.2,0.54870008]
[1727179948964,5.38010933,2641.3,2641.2,0.54870008]
[1727179949614,6.16950895,2641.3,2641.2,0.54870008]
[1727179950566,0.78939962,2641.4,2641.2,0.54870008]
[1727179950736,4.57512962,2641.5,2641.2,1.44138409]
[1727179951125,0.6377223,2641.4,2641.2,1.39268401]
[1727179951358,4.57512962,2641.5,2641.2,0.5]
[1727179951583,0.63770799,2641.4,2641.2,0.5]
[1727179952462,4.57512962,2641.5,2641.3,0.04811738]
[1727179952760,0.63798099,2641.4,2641.2,0.5]
[1727179953329,4.57512962,2641.5,2641.2,0.5]
[1727179953330,0.78939962,2641.5,2641.2,4.799121]
[1727179953551,4.96973095,2641.7,2641.4,0.7863]
[1727179953552,0.78939962,2641.6,2641.4,0.7863]
[1727179953731,2.38450852,2641.6,2641.4,0.7863]
[1727179954144,1.5951089,2641.6,2641.4,0.7863]
[1727179954354,0.63804356,2641.5,2641.4,0.7863]
[1727179954559,1.4274784,2641.6,2641.4,0.7863]
[1727179954737,2.38459702,2641.6,2641.4,0.7863]
[1727179954941,6.17027702,2641.6,2641.4,0.7863]
[1727179955129,0.63807878,2641.5,2641.4,0.7863]
[1727179956563,1.59529521,2641.5,2641.4,0.7863]
[1727179957130,0.63807878,2641.5,2641.2,1.799291]
[1727179959065,0.63807878,2641.5,2641.2,5.585351]
[1727179959272,0.78939962,2641.6,2641.3,1.3157791]
[1727179959473,6.17068444,2641.6,2641.3,1.3157791]
[1727179959637,0.63827393,2641.5,2641.2,5.07236]
[1727179960881,1.59580844,2641.5,2641.3,0.04811738]
[1727179961083,4.57499962,2641.6,2641.2,5.07236]
[1727179961297,2.38529751,2641.5,2641.4,0.04811738]
[1727179961579,2.38529751,2641.5,2641.2,5.999669]
[1727179961786,2.38529751,2641.5,2641.4,0.04811738]
[1727179961940,2.38529751,2641.5,2641.2,5.999669]
[1727179962140,2.38529751,2641.5,2641.4,0.04811738]
[1727179962340,2.38529751,2641.5,2641.2,5.999669]
[1727179962540,2.38529751,2641.5,2641.4,0.04811738]
[1727179962851,2.38584465,2641.5,2641.2,5.999669]
[1727179963048,2.38584465,2641.5,2641.4,0.0480649]
[1727179963256,2.38584465,2641.5,2641.2,5.999669]
[1727179963453,2.38584465,2641.5,2641.4,0.0480649]
[1727179963771,2.38584465,2641.5,2641.2,5.999669]
[1727179963943,2.38584465,2641.5,2641.4,0.0480649]
[1727179964341,2.38584465,2641.5,2641.2,5.499669]
[1727179964552,4.96980095,2641.6,2641.4,0.0480649]
[1727179964775,1.59691315,2641.5,2641.3,0.5]
[1727179964982,2.38739841,2641.4,2641.3,0.5]
[1727179965153,0.79048526,2641.4,2641.3,0.5]
[1727179966194,2.38739841,2641.4,2641.3,0.5]
[1727179966503,0.79048526,2641.4,2641.3,0.5]
[1727179967186,2.38739841,2641.5,2641.3,0.5]
[1727179967388,2.38739841,2641.4,2641.3,0.5]
[1727179967545,0.79048526,2641.4,2641.3,0.5]
[1727179967745,1.42946884,2641.4,2641.3,0.5]
[1727179968688,2.38794421,2641.4,2641.3,1.0]
[1727179968993,1.42946884,2641.4,2641.3,1.0]
[1727179969278,2.38794421,2641.4,2641.3,1.0]
[1727179969479,1.59745895,2641.4,2641.3,1.0]
[1727179969848,2.38865791,2641.4,2641.3,1.0]
[1727179970076,1.59745895,2641.4,2641.3,1.0]
[1727179970496,2.78438462,2641.4,2641.3,1.0]
[1727179971209,8.73937424,2641.4,2641.3,1.0]
[1727179971510,8.64472035,2641.4,2641.3,1.0]
[1727179971700,6.66616768,2641.4,2641.3,1.0]
[1727179971901,6.76082686,2641.4,2641.3,1.0]
[1727179972224,8.73944566,2641.4,2641.3,1.0]
[1727179972503,6.66617363,2641.4,2641.3,1.0]
[1727179972715,6.66617363,2641.4,2641.3,1.5]
[1727179974810,6.66617363,2641.4,2641.3,1.54683794]
[1727179974982,8.73955886,2641.4,2641.3,1.54683794]
[1727179975183,8.64490028,2641.4,2641.3,1.5]
[1727179976310,6.66617363,2641.4,2641.3,1.5]
[1727179977016,6.76083171,2641.4,2641.3,2.0]
[1727179977213,6.76055735,2641.4,2641.3,2.0]
[1727179977374,6.66589927,2641.4,2641.3,2.0]
[1727179977815,6.66589927,2641.4,2641.3,2.04683794]
[1727179978018,6.66589927,2641.4,2641.3,2.0]
[1727179979293,6.66589927,2641.4,2641.3,2.04683794]
[1727179980931,8.64360445,2641.4,2641.3,2.54683794]
[1727179981098,8.64360445,2641.4,2641.3,2.5]
[1727179981509,8.64360445,2641.4,2641.3,2.54557633]
[1727179983106,8.64360445,2641.4,2641.3,2.5]
[1727179983307,6.66589927,2641.4,2641.3,2.54557633]
[1727179983491,8.64363025,2641.4,2641.3,2.54557633]
[1727179983698,8.64363025,2641.4,2641.3,2.5]
[1727179983899,8.64363025,2641.4,2641.3,2.54557633]
[1727179984303,4.85776025,2641.4,2641.3,2.54557633]
[1727179984633,3.57764624,2641.4,2641.3,2.54557633]
[1727179984856,4.85776025,2641.4,2641.3,2.54557633]
[1727179985542,4.85807767,2641.4,2641.3,2.54557633]